bitfinex-derivatives/quotes_BTCF0:USTF0_20210104
["timestamp","ask_amount","ask_price","bid_price","bid_amount"]
[1609802369381,5.3768,31197.0,31187.0,2.11857954]
[1609802369581,0.13632608,31188.0,31187.0,2.11857954]
[1609802369781,0.14556,31206.0,31187.0,2.11857954]
[1609802370181,9.5311,31200.0,31187.0,2.11857954]
[1609802370383,0.14556,31206.0,31187.0,2.11857954]
[1609802371684,0.13632608,31188.0,31187.0,2.11857954]
[1609802372685,0.13632608,31188.0,31180.0,2.11980227]
[1609802372885,4.2442,31187.0,31180.0,2.11980227]
[1609802373086,0.13632608,31188.0,31180.0,2.11980227]
[1609802373486,3.90222608,31181.0,31180.0,2.11980227]
[1609802374885,3.7659,31181.0,31180.0,2.11980227]
[1609802375089,3.7659,31181.0,31173.0,0.13388]
[1609802375485,3.7659,31181.0,31177.0,0.13632608]
[1609802376788,3.7659,31181.0,31173.0,0.13388]
[1609802377288,0.1587,31191.0,31173.0,0.13388]
[1609802377488,0.13632608,31174.0,31173.0,0.27020608]
[1609802377690,4.7474,31186.0,31173.0,0.27020608]
[1609802378187,0.1587,31191.0,31173.0,0.27020608]
[1609802378387,0.48129926,31187.0,31173.0,0.27020608]
[1609802378588,0.48129926,31187.0,31176.0,4.1851]
[1609802378788,0.63612926,31187.0,31176.0,4.1851]
[1609802379388,0.15483,31187.0,31176.0,4.1851]
[1609802379589,0.15483,31187.0,31186.0,0.13632608]
[1609802379789,0.12202,31198.0,31186.0,0.70042608]
[1609802379989,0.12202,31198.0,31186.0,0.13632608]
[1609802380192,0.2952,31202.0,31188.0,4.1493]
[1609802380391,5.2246,31211.0,31188.0,4.1493]
[1609802380392,0.097,31201.0,31188.0,4.1493]
[1609802380589,0.22592953,31213.0,31182.0,0.15178]
[1609802380590,0.12892953,31213.0,31182.0,0.15178]
[1609802380791,5.3276,31191.0,31182.0,0.15178]
[1609802381389,5.3276,31191.0,31177.0,0.1771]
[1609802381591,0.13632608,31178.0,31177.0,0.31342608]
[1609802381890,0.13632608,31178.0,31173.0,0.13388]
[1609802382288,0.13632608,31178.0,31166.0,4.2115]
[1609802382489,0.13632608,31178.0,31157.0,0.1771]
[1609802382689,6.56,31169.0,31157.0,0.1771]
[1609802382892,0.13632608,31178.0,31157.0,0.1771]
[1609802383089,0.13632608,31178.0,31150.0,2.0987047]
[1609802383289,0.12878,31182.0,31150.0,2.0987047]
[1609802383490,0.12878,31182.0,31150.0,2.2081347]
[1609802383689,0.13632608,31151.0,31150.0,2.2081347]
[1609802384090,0.13632608,31151.0,31150.0,0.10943]
[1609802384890,4.1957,31163.0,31150.0,0.10943]
[1609802385290,0.2826,31172.0,31150.0,0.10943]
[1609802385491,4.1681,31151.0,31150.0,0.10943]
[1609802385691,4.30442608,31151.0,31150.0,0.10943]
[1609802386992,0.13632608,31151.0,31150.0,0.10943]
[1609802387192,5.0878,31160.0,31150.0,0.10943]
[1609802387391,0.48166463,31164.0,31150.0,0.10943]
[1609802387591,0.48166463,31164.0,31151.0,4.8536]
[1609802387995,0.48166463,31164.0,31159.0,0.12783]
[1609802388593,0.48166463,31164.0,31163.0,4.2854]
[1609802388994,0.09682,31173.0,31163.0,4.2854]
[1609802389195,0.2985,31184.0,31163.0,4.2854]
[1609802389596,0.2985,31184.0,31159.0,0.12783]
[1609802389796,0.13632608,31160.0,31159.0,0.12783]
[1609802390598,4.2146,31161.0,31159.0,0.12783]
[1609802391700,0.13632608,31160.0,31150.0,0.10943]
[1609802392101,0.13632608,31160.0,31145.0,4.59122608]
[1609802393102,0.13632608,31160.0,31145.0,0.13632608]
[1609802393500,4.2271,31156.0,31145.0,0.13632608]
[1609802393700,0.13632608,31152.0,31151.0,0.13632608]
[1609802394299,4.2271,31156.0,31151.0,0.13632608]
[1609802394600,4.2271,31156.0,31151.0,0.26617608]
[1609802395402,0.48171104,31161.0,31151.0,0.26617608]
[1609802395605,0.12522,31170.0,31151.0,0.26617608]
[1609802395803,0.13632608,31165.0,31160.0,0.13632608]
[1609802396203,0.12522,31170.0,31160.0,0.13632608]
[1609802397306,0.2735,31181.0,31160.0,0.13632608]
[1609802397707,0.13632608,31163.0,31160.0,0.13632608]
[1609802398606,0.13987,31168.0,31160.0,0.13632608]
[1609802398804,0.13987,31168.0,31158.0,4.1229]
[1609802399708,0.13987,31168.0,31164.0,0.13632608]
[1609802400407,0.13987,31168.0,31158.0,4.1229]
[1609802401810,0.13632608,31165.0,31163.0,0.13632608]
[1609802402812,0.61797509,31165.0,31163.0,0.13632608]
[1609802404013,0.61797509,31165.0,31158.0,4.1229]
[1609802404216,0.61797509,31165.0,31151.0,0.1771]
[1609802405616,0.48164901,31165.0,31151.0,0.1771]
[1609802406013,5.1337,31166.0,31151.0,0.1771]
[1609802406214,0.13632608,31152.0,31151.0,0.1771]
[1609802407514,0.13809,31154.0,31151.0,0.1771]
[1609802407714,0.12358,31161.0,31151.0,0.1771]
[1609802408114,3.6306,31167.0,31151.0,0.1771]
[1609802408315,3.6306,31167.0,31161.0,0.13632608]
[1609802408617,0.05532285,31145.0,31141.0,5.362]
[1609802408817,0.13987,31168.0,31141.0,0.1429]
[1609802409017,4.6087,31164.0,31142.0,0.1771]
[1609802410918,4.6087,31164.0,31147.0,0.13632608]
[1609802411317,4.6087,31164.0,31142.0,0.30993]
[1609802412719,4.6087,31164.0,31143.0,0.5909]
[1609802412918,0.13632608,31155.0,31146.0,0.13632608]
[1609802413119,0.4817717,31157.0,31154.0,4.0986]
[1609802413721,3.80857824,31190.0,31154.0,4.0986]
[1609802414121,3.80857824,31190.0,31155.0,0.1771]
[1609802415321,0.13632608,31163.0,31162.0,0.13632608]
[1609802415921,0.15751,31170.0,31155.0,0.1771]
[1609802417322,0.13632608,31156.0,31155.0,0.1771]
[1609802417922,0.13632608,31156.0,31153.0,0.15025]
[1609802418123,0.13632608,31156.0,31147.0,4.9219]
[1609802419226,0.15268,31160.0,31149.0,0.13632608]
[1609802421332,0.15268,31160.0,31154.0,0.13632608]
[1609802422333,0.15268,31160.0,31149.0,0.15749]
[1609802423034,0.15751,31170.0,31149.0,0.15749]
[1609802423335,0.13632608,31150.0,31149.0,0.15749]
[1609802427038,0.13632608,31150.0,31144.0,0.13632608]
[1609802427237,0.13632608,31150.0,31142.0,0.13283]
[1609802427438,0.13632608,31143.0,31140.0,2.12364799]
[1609802429042,0.84542608,31143.0,31138.0,2.13003834]
[1609802429442,0.13632608,31139.0,31138.0,2.13003834]
[1609802431948,0.7091,31143.0,31138.0,2.13003834]
[1609802432347,0.48180387,31155.0,31138.0,2.25489834]
[1609802433251,0.48180387,31155.0,31139.0,2.13101765]
[1609802433450,0.13632608,31145.0,31140.0,0.13632608]
[1609802434051,0.13677,31152.0,31139.0,2.13101765]
[1609802434851,0.13677,31152.0,31139.0,2.70741765]
[1609802435053,4.985,31157.0,31139.0,2.70741765]
[1609802435353,4.985,31157.0,31154.0,0.13632608]
[1609802435652,0.13626,31163.0,31154.0,0.13632608]
[1609802436053,0.00396093,31174.0,31154.0,0.13632608]
[1609802436253,0.283,31175.0,31154.0,0.13632608]
[1609802436654,0.4817546,31158.0,31154.0,0.13632608]
[1609802437155,0.4817546,31158.0,31149.0,4.3422]
[1609802437355,0.13632608,31151.0,31149.0,4.3422]
[1609802437756,0.4817546,31158.0,31149.0,4.3422]
[1609802438957,0.4817546,31158.0,31147.0,2.39802276]
[1609802439459,0.13632608,31156.0,31152.0,0.13632608]
[1609802439658,0.13632608,31156.0,31147.0,2.26169668]
[1609802441060,0.13632608,31156.0,31147.0,2.13545668]
[1609802441360,0.4817546,31158.0,31148.0,0.13632608]
[1609802441562,4.6973,31159.0,31148.0,0.13632608]
[1609802441860,0.13714,31162.0,31148.0,0.13632608]
[1609802442261,4.6481,31172.0,31148.0,0.13632608]
[1609802443362,0.61818161,31151.0,31148.0,0.13632608]
[1609802446569,0.61818161,31151.0,31148.0,2.27692214]
[1609802447669,0.61818161,31151.0,31148.0,0.13632608]
[1609802454077,1.32068161,31151.0,31148.0,0.13632608]
[1609802457382,0.61818161,31151.0,31148.0,0.13632608]
[1609802458080,0.61818161,31151.0,31147.0,2.14063178]
[1609802459083,0.13632608,31151.0,31147.0,2.14063178]
[1609802459489,0.13632608,31151.0,31141.0,2.14079681]
[1609802459683,4.4003,31145.0,31141.0,2.14079681]
[1609802460082,4.54349,31145.0,31141.0,2.14079681]
[1609802460895,4.54349,31145.0,31136.0,0.13632608]
[1609802461485,0.13632608,31137.0,31136.0,0.13632608]
[1609802461685,0.34577137,31136.0,31135.0,2.14153118]
[1609802462495,0.14319,31145.0,31135.0,2.14153118]
[1609802463285,0.14319,31145.0,31128.0,4.8623]
[1609802463286,0.14319,31145.0,31136.0,2.14142575]
[1609802463486,0.14319,31145.0,31144.0,0.13632608]
[1609802464385,0.14319,31145.0,31137.0,2.14141891]
[1609802465488,0.13632608,31142.0,31141.0,0.13632608]
[1609802469395,0.48191705,31147.0,31141.0,0.13632608]
[1609802469596,0.48191705,31147.0,31146.0,0.13632608]
[1609802470796,0.13675,31154.0,31146.0,0.13632608]
[1609802470998,3.6431,31160.0,31146.0,0.13632608]
[1609802471199,0.00401829,31162.0,31146.0,0.13632608]
[1609802471397,0.01380251,31170.0,31150.0,4.168]
[1609802471596,0.13632608,31165.0,31164.0,0.13632608]
[1609802472198,0.01380251,31170.0,31164.0,4.30862608]
[1609802472500,0.01382598,31176.0,31164.0,4.30862608]
[1609802472899,0.01382598,31176.0,31164.0,0.13632608]
[1609802473299,0.01382598,31176.0,31172.0,4.7432]
[1609802473500,0.13632608,31173.0,31172.0,4.7432]
[1609802477104,0.01383464,31182.0,31172.0,4.7432]
[1609802477305,0.01383464,31182.0,31169.0,0.13632608]
[1609802477706,0.13331,31183.0,31181.0,0.13632608]
[1609802479108,0.0040269,31190.0,31181.0,0.13632608]
[1609802479307,0.0040269,31190.0,31187.0,3.6326]
[1609802479508,0.0040269,31190.0,31177.0,0.13878]
[1609802479707,0.01381245,31193.0,31179.0,4.9534]
[1609802479906,0.01381245,31193.0,31189.0,0.13632608]
[1609802481109,0.01382674,31194.0,31189.0,0.13632608]
[1609802481809,0.13632608,31191.0,31189.0,0.13632608]
[1609802488617,0.15153,31198.0,31189.0,0.13632608]
[1609802488817,3.95617282,31208.0,31189.0,0.13632608]
[1609802489220,0.01377282,31208.0,31189.0,0.13632608]
[1609802489420,4.66847282,31208.0,31189.0,0.13632608]
[1609802489920,0.13632608,31200.0,31199.0,0.13632608]
[1609802490419,0.13632608,31200.0,31184.0,4.93276]
[1609802491923,0.13632608,31200.0,31199.0,0.13632608]
[1609802494627,0.13632608,31200.0,31199.0,0.69372608]
[1609802496128,0.13997,31205.0,31199.0,0.69372608]
[1609802496329,4.35229664,31215.0,31199.0,0.69372608]
[1609802496529,0.00399664,31215.0,31199.0,0.13632608]
[1609802496729,0.00399664,31215.0,31203.0,4.0408]
[1609802497930,0.13632608,31204.0,31203.0,4.0408]
[1609802498130,0.13632608,31204.0,31199.0,0.13632608]
[1609802498331,0.13632608,31204.0,31197.0,4.5524]
[1609802499931,0.13632608,31204.0,31203.0,0.13632608]
[1609802500133,0.13632608,31204.0,31203.0,0.82062608]
[1609802503938,0.11266,31211.0,31203.0,0.82062608]
[1609802504342,0.00399303,31218.0,31203.0,0.13632608]
[1609802504543,0.0136799,31220.0,31216.0,3.6448]
[1609802505344,0.00399902,31227.0,31216.0,3.6448]
[1609802505944,0.00399902,31227.0,31226.0,0.13632608]
[1609802506344,0.00399902,31227.0,31226.0,4.89332608]
[1609802506544,0.02894531,31228.0,31226.0,4.89332608]
[1609802506745,0.00401737,31233.0,31226.0,4.757]
[1609802507745,0.0040249,31240.0,31226.0,4.757]
[1609802507945,0.0040249,31240.0,31235.0,0.13632608]
[1609802508545,0.00402684,31244.0,31235.0,0.13632608]
[1609802508944,0.00402684,31244.0,31236.0,0.7016]
[1609802509544,0.00402684,31244.0,31214.0,0.11779]
[1609802509844,0.10899684,31244.0,31216.0,4.2359]
[1609802510047,0.13632608,31233.0,31232.0,0.13632608]
[1609802513554,0.13632608,31233.0,31229.0,4.3746]
[1609802513753,0.13632608,31233.0,31207.0,0.10219]
[1609802513955,0.13632608,31233.0,31211.0,4.2148]
[1609802514155,4.5419,31234.0,31213.0,0.13632608]
[1609802514354,0.1087,31236.0,31207.0,0.10219]
[1609802514555,0.01380846,31233.0,31222.0,4.0226]
[1609802515359,0.00402566,31232.0,31222.0,4.0226]
[1609802516060,0.00402566,31232.0,31224.0,0.13632608]
[1609802516959,0.00402566,31232.0,31216.0,4.3483]
[1609802517359,0.00402566,31232.0,31207.0,0.10219]
[1609802517559,4.3256,31230.0,31202.0,4.1009]
[1609802518160,4.3256,31230.0,31212.0,0.13632608]
[1609802518861,0.00402566,31232.0,31212.0,0.13632608]
[1609802519060,0.00402566,31232.0,31213.0,4.3268]
[1609802519259,0.00402566,31232.0,31212.0,0.13632608]
[1609802519460,0.00402566,31232.0,31222.0,4.5892]
[1609802520261,0.00402566,31232.0,31231.0,0.13632608]
[1609802521464,0.57528664,31234.0,31231.0,0.13632608]
[1609802521465,0.01377413,31234.0,31231.0,0.13632608]
[1609802522062,0.15564812,31235.0,31231.0,0.13632608]
[1609802522063,0.13632608,31235.0,31231.0,0.13632608]
[1609802522764,0.1087,31236.0,31229.0,4.9778]
[1609802523066,0.01378512,31240.0,31229.0,4.9778]
[1609802524370,0.01378512,31240.0,31237.0,0.13632608]
[1609802524768,0.01378512,31240.0,31222.0,0.12772]
[1609802524970,5.1373,31238.0,31220.0,5.2152]
[1609802526469,5.1373,31238.0,31228.0,0.13632608]
[1609802527770,0.01373109,31239.0,31187.0,0.1771]
[1609802527970,0.01373109,31239.0,31208.0,0.11282]
[1609802528170,0.01373109,31239.0,31217.0,4.9826]
[1609802528872,0.01373404,31241.0,31217.0,4.9826]
[1609802529070,0.01373404,31241.0,31231.0,0.13632608]
[1609802530971,0.13632608,31232.0,31231.0,0.13632608]
[1609802534477,0.12399,31234.0,31231.0,0.13632608]
[1609802534677,0.12399,31234.0,31233.0,4.9533]
[1609802535080,0.0040223,31240.0,31231.0,0.13632608]
[1609802536782,0.0040223,31240.0,31225.0,0.11573]
[1609802537279,0.0040223,31240.0,31239.0,0.13632608]
[1609802537679,0.0040158,31243.0,31239.0,0.13632608]
[1609802538280,0.01387902,31258.0,31242.0,5.2831]
[1609802539281,0.01387902,31258.0,31250.0,0.13632608]
[1609802540383,4.576,31256.0,31250.0,0.13632608]
[1609802541384,0.13632608,31251.0,31250.0,0.13632608]
[1609802542585,0.13632608,31251.0,31237.0,5.3018]
[1609802543086,4.576,31256.0,31237.0,5.3018]
[1609802543889,0.00405138,31257.0,31236.0,0.13869]
[1609802544087,0.00405138,31257.0,31225.0,0.11573]
[1609802544288,0.1442514,31257.0,31234.0,4.959]
[1609802545690,0.1442514,31257.0,31247.0,0.13632608]
[1609802547593,0.13632608,31253.0,31247.0,0.13632608]
[1609802548496,0.13632608,31253.0,31234.0,4.959]
[1609802549700,0.1442514,31257.0,31247.0,0.13632608]
[1609802549899,0.01387983,31253.0,31247.0,0.13632608]
[1609802550598,0.01387983,31253.0,31234.0,5.09183]
[1609802550799,0.01387983,31253.0,31234.0,0.13283]
[1609802551600,0.01387983,31253.0,31245.0,0.13632608]
[1609802552304,0.13036,31257.0,31245.0,0.13632608]
[1609802552501,0.00404386,31259.0,31245.0,0.13632608]
[1609802553401,0.00404707,31260.0,31245.0,0.13632608]
[1609802553600,0.00404707,31260.0,31238.0,5.3232]
[1609802553901,0.10204707,31260.0,31238.0,5.3232]
[1609802554103,0.098,31260.0,31251.0,0.13632608]
[1609802555205,0.10204708,31260.0,31251.0,0.13632608]
[1609802555604,3.8623,31259.0,31251.0,0.13632608]
[1609802556006,3.8623,31259.0,31255.0,0.13632608]
[1609802556305,3.8623,31259.0,31238.0,5.1098]
[1609802556507,3.8623,31259.0,31241.0,0.14427]
[1609802558107,3.8623,31259.0,31254.0,0.13632608]
[1609802558307,0.098,31260.0,31254.0,0.13632608]
[1609802559008,0.01388003,31262.0,31254.0,0.13632608]
[1609802559910,0.01389222,31263.0,31254.0,0.13632608]
[1609802560110,0.13632608,31255.0,31254.0,0.13632608]
[1609802561211,3.6735,31258.0,31254.0,0.13632608]
[1609802562515,0.13632608,31261.0,31254.0,0.13632608]
[1609802563816,0.13632608,31261.0,31260.0,4.377]
[1609802564016,0.13632608,31261.0,31260.0,4.51332608]
[1609802564416,0.01388993,31268.0,31260.0,4.51332608]
[1609802564816,0.01388993,31268.0,31260.0,0.13632608]
[1609802565017,0.01388993,31268.0,31267.0,5.2451]
[1609802565518,0.01391761,31269.0,31260.0,0.13632608]
[1609802566021,0.15024369,31269.0,31268.0,0.13632608]
[1609802566219,0.01391761,31269.0,31268.0,0.13632608]
[1609802568827,0.01391761,31269.0,31268.0,5.05372608]
[1609802570530,0.01391761,31269.0,31268.0,0.13632608]
[1609802573233,0.01391761,31269.0,31268.0,4.88232608]
[1609802575337,0.01391761,31269.0,31268.0,0.13632608]
[1609802577940,0.01391761,31269.0,31268.0,4.22142608]
[1609802578144,0.15024369,31269.0,31256.0,0.09952]
[1609802578340,0.15024369,31269.0,31254.0,3.5848]
[1609802578540,0.15024369,31269.0,31249.0,0.1066]
[1609802578743,4.7842,31267.0,31242.0,4.3086]
[1609802578940,4.7842,31267.0,31250.0,0.5442]
[1609802579141,4.7842,31267.0,31250.0,0.66301]
[1609802580140,4.7842,31267.0,31259.0,0.13632608]
[1609802582144,0.13632608,31260.0,31259.0,0.13632608]
[1609802582345,0.29243608,31260.0,31259.0,0.13632608]
[1609802585851,0.29243608,31260.0,31242.0,0.1771]
[1609802586050,3.9245,31257.0,31242.0,0.1771]
[1609802586249,3.9245,31257.0,31247.0,0.13632608]
[1609802586449,3.9245,31257.0,31242.0,0.1771]
[1609802588051,3.9245,31257.0,31232.0,3.7798]
[1609802588253,0.13632608,31242.0,31238.0,0.13632608]
[1609802589253,0.13632608,31242.0,31232.0,3.7798]
[1609802590154,0.12363,31247.0,31239.0,0.13632608]
[1609802592258,0.12363,31247.0,31244.0,0.13632608]
[1609802593159,0.15611,31260.0,31246.0,4.127]
[1609802593361,0.00403539,31264.0,31246.0,4.127]
[1609802593760,0.2994,31269.0,31246.0,4.127]
[1609802594159,0.2994,31269.0,31256.0,0.13632608]
[1609802594359,0.01387273,31272.0,31256.0,0.13632608]
[1609802594562,0.6822,31271.0,31246.0,4.127]
[1609802594762,0.01387273,31272.0,31243.0,0.1771]
[1609802594963,3.871,31268.0,31243.0,0.1771]
[1609802596264,0.13632608,31244.0,31243.0,0.1771]
[1609802597265,4.1222,31248.0,31243.0,0.1771]
[1609802597875,0.15618,31254.0,31243.0,0.1771]
[1609802598267,0.15618,31254.0,31248.0,0.13632608]
[1609802599468,0.15618,31254.0,31243.0,0.1771]
[1609802600571,0.29250608,31254.0,31253.0,0.13632608]
[1609802601372,0.15618,31254.0,31253.0,0.13632608]
[1609802601573,4.8365,31259.0,31253.0,0.13632608]
[1609802601975,4.8365,31259.0,31243.0,0.1771]
[1609802602472,4.93395,31259.0,31243.0,0.1771]
[1609802602673,5.07027608,31259.0,31258.0,0.13632608]
[1609802603074,0.23377608,31259.0,31258.0,0.13632608]
[1609802603674,0.09745,31259.0,31258.0,0.13632608]
[1609802604075,0.0726,31267.0,31258.0,0.13632608]
[1609802604678,0.13632608,31266.0,31265.0,0.13632608]
[1609802604876,0.0726,31267.0,31265.0,0.13632608]
[1609802606979,0.0726,31267.0,31264.0,3.6309]
[1609802608577,0.20892608,31267.0,31266.0,0.13632608]
[1609802609680,0.0726,31267.0,31266.0,0.13632608]
[1609802612685,0.0726,31267.0,31266.0,3.99232608]
[1609802614180,0.13632608,31270.0,31266.0,3.99232608]
[1609802614381,0.01389413,31283.0,31266.0,3.99232608]
[1609802614580,0.01389413,31283.0,31266.0,0.13632608]
[1609802614780,0.01389413,31283.0,31279.0,4.4775]
[1609802616983,0.01389413,31283.0,31282.0,0.13632608]
[1609802617884,0.15919028,31285.0,31282.0,0.13632608]
[1609802619186,0.63439027,31286.0,31282.0,0.13632608]
[1609802619388,0.63439027,31286.0,31282.0,5.12282608]
[1609802620392,0.13632608,31303.0,31282.0,5.12282608]
[1609802620393,0.84850755,31294.0,31282.0,5.12282608]
[1609802620890,0.84850755,31294.0,31292.0,0.13632608]
[1609802621090,3.8337,31312.0,31292.0,0.26701608]
[1609802621489,0.2822,31316.0,31292.0,0.26701608]
[1609802622898,0.2822,31316.0,31303.0,0.13632608]
[1609802624996,0.2822,31316.0,31308.0,0.13632608]
[1609802625599,0.2822,31316.0,31308.0,5.09172608]
[1609802626598,0.2822,31316.0,31308.0,4.9554]
[1609802626998,4.2149,31344.0,31308.0,4.9554]
[1609802626999,0.13632608,31320.0,31315.0,0.13632608]
[1609802628503,0.13632608,31320.0,31306.0,0.10089]
[1609802628701,0.76332608,31320.0,31306.0,0.10089]
[1609802629102,0.627,31320.0,31306.0,0.10089]
[1609802629601,0.76332608,31320.0,31319.0,0.13632608]
[1609802630403,0.13632608,31320.0,31319.0,0.13632608]
[1609802631802,0.2892,31359.0,31319.0,0.13632608]
[1609802632205,4.7868,31344.0,31319.0,0.13632608]
[1609802632403,4.90594,31344.0,31319.0,0.13632608]
[1609802633605,4.90594,31344.0,31331.0,0.13632608]
[1609802633804,0.11914,31344.0,31331.0,0.13632608]
[1609802634705,0.11914,31344.0,31331.0,4.10232608]
[1609802635708,0.13632608,31332.0,31331.0,4.10232608]
[1609802636110,0.13632608,31332.0,31331.0,0.13632608]
[1609802637008,0.13632608,31332.0,31317.0,0.14733]
[1609802637208,0.13632608,31332.0,31308.0,3.7313]
[1609802637607,3.9421,31335.0,31325.0,0.13632608]
[1609802638008,3.9421,31335.0,31325.0,0.26735608]
[1609802638209,0.10597,31337.0,31325.0,0.26735608]
[1609802638412,0.10597,31337.0,31335.0,4.5408]
[1609802638612,0.11914,31344.0,31335.0,4.5408]
[1609802638810,0.2829,31358.0,31335.0,4.5408]
[1609802639013,0.2829,31358.0,31325.0,0.13103]
[1609802639211,0.2829,31358.0,31343.0,3.6266]
[1609802639411,0.2829,31358.0,31325.0,0.13103]
[1609802639610,0.40392,31358.0,31345.0,0.13632608]
[1609802639810,0.40392,31358.0,31345.0,0.85362608]
[1609802640612,0.40392,31358.0,31345.0,0.7173]
[1609802641612,0.40392,31358.0,31346.0,0.13632608]
[1609802641914,0.40392,31358.0,31345.0,0.7173]
[1609802642313,0.40392,31358.0,31337.0,0.10463]
[1609802642714,0.40392,31358.0,31340.0,3.6264]
[1609802643614,0.40392,31358.0,31346.0,0.13632608]
[1609802644816,0.40392,31358.0,31344.0,0.11044]
[1609802645617,0.13632608,31345.0,31344.0,0.11044]
[1609802645917,0.13632608,31345.0,31342.0,0.13632608]
[1609802646116,0.68292138,31352.0,31342.0,0.13632608]
[1609802646520,0.40392,31358.0,31342.0,0.13632608]
[1609802646718,0.40392,31358.0,31337.0,0.10463]
[1609802646923,0.40392,31358.0,31342.0,5.3056]
[1609802647619,0.40392,31358.0,31345.0,0.13632608]
[1609802648920,0.40392,31358.0,31342.0,5.3056]
[1609802649721,0.13632608,31343.0,31342.0,5.3056]
[1609802650523,0.13632608,31343.0,31339.0,0.13632608]
[1609802651824,0.40392,31358.0,31338.0,4.4499]
[1609802652325,0.40392,31358.0,31343.0,0.13632608]
[1609802654427,0.40392,31358.0,31347.0,0.13632608]
[1609802654829,0.40392,31358.0,31338.0,4.4499]
[1609802656329,0.40392,31358.0,31340.0,0.13632608]
[1609802658331,0.13632608,31341.0,31340.0,0.13632608]
[1609802658531,0.13632608,31341.0,31336.0,0.147]
[1609802658732,0.13632608,31341.0,31326.0,4.2967]
[1609802659935,0.13632608,31341.0,31337.0,5.2003]
[1609802660137,0.10828,31351.0,31337.0,5.2003]
[1609802660334,0.10828,31351.0,31350.0,0.13632608]
[1609802660531,0.13632608,31355.0,31350.0,0.13632608]
[1609802660832,0.40392,31358.0,31350.0,0.13632608]
[1609802661232,0.2829,31358.0,31350.0,0.13632608]
[1609802661431,0.68319699,31368.0,31350.0,0.13632608]
[1609802662432,0.68319699,31368.0,31349.0,4.7309]
[1609802662632,0.68319699,31368.0,31348.0,0.14352]
[1609802663032,0.13632608,31349.0,31348.0,0.14352]
[1609802663232,0.13632608,31349.0,31346.0,0.13632608]
[1609802664835,0.1542,31355.0,31346.0,0.13632608]
[1609802665034,0.1542,31355.0,31350.0,0.13632608]
[1609802666436,0.14303,31362.0,31350.0,0.13632608]
[1609802666635,0.14303,31362.0,31351.0,4.1879]
[1609802666935,0.13632608,31352.0,31351.0,4.1879]
[1609802667637,0.13632608,31352.0,31350.0,0.13632608]
[1609802668237,0.14303,31362.0,31350.0,0.13632608]
[1609802668437,4.0142,31364.0,31350.0,0.13632608]
[1609802669039,4.0142,31364.0,31362.0,0.13632608]
[1609802669238,0.2775,31366.0,31362.0,0.13632608]
[1609802669839,0.68319699,31368.0,31362.0,0.13632608]
[1609802670040,0.68319699,31368.0,31364.0,3.6639]
[1609802670240,0.56813352,31384.0,31364.0,3.6639]
[1609802670440,0.56813352,31384.0,31362.0,0.13632608]
[1609802670642,0.56813352,31384.0,31373.0,4.7274]
[1609802671040,0.13632608,31374.0,31373.0,4.7274]
[1609802672641,0.13632608,31374.0,31371.0,0.13632608]
[1609802679349,0.12747,31383.0,31371.0,0.13632608]
[1609802679550,4.6657,31385.0,31371.0,0.28118608]
[1609802679949,0.57239618,31395.0,31371.0,0.28118608]
[1609802680150,0.07868641,32997.0,31371.0,0.28118608]
[1609802680151,0.57032534,31398.0,31371.0,0.28118608]
[1609802680351,0.2881,31395.0,31371.0,0.28118608]
[1609802680651,0.42748,31395.0,31371.0,0.28118608]
[1609802681053,0.42748,31395.0,31378.0,0.13632608]
[1609802681452,0.42748,31395.0,31381.0,4.9757]
[1609802681755,0.13938,31395.0,31381.0,4.9757]
[1609802683053,0.13632608,31382.0,31381.0,4.9757]
[1609802685654,0.13938,31395.0,31381.0,4.9757]
[1609802686057,0.2943,31404.0,31381.0,4.9757]
[1609802687058,0.2943,31404.0,31382.0,0.13632608]
[1609802688159,4.5543,31402.0,31382.0,0.13632608]
[1609802689061,4.5543,31402.0,31388.0,0.13632608]
[1609802689260,4.5543,31402.0,31388.0,0.26075608]
[1609802689662,0.2943,31404.0,31388.0,0.26075608]
[1609802689861,0.12728,31405.0,31388.0,0.26075608]
[1609802690665,0.56990922,31411.0,31398.0,4.9307]
[1609802691064,0.56990922,31411.0,31408.0,0.13632608]
[1609802691666,0.56990922,31411.0,31398.0,4.9307]
[1609802692965,0.56954097,31413.0,31398.0,4.9307]
[1609802693166,0.56954097,31413.0,31412.0,0.13632608]
[1609802694869,0.56954097,31413.0,31404.0,0.14448]
[1609802695069,0.13632608,31405.0,31404.0,0.14448]
[1609802695469,4.2341,31420.0,31404.0,0.14448]
[1609802695669,0.84122243,31440.0,31404.0,0.14448]
[1609802695870,4.0201,31437.0,31404.0,0.14448]
[1609802696070,0.84125392,31436.0,31404.0,0.14448]
[1609802696771,4.0201,31437.0,31404.0,0.14448]
[1609802697172,4.0201,31437.0,31405.0,0.13632608]
[1609802697371,0.2795,31439.0,31405.0,0.13632608]
[1609802697772,0.2795,31439.0,31404.0,0.14448]
[1609802698174,4.7171,31434.0,31404.0,0.14448]
[1609802698773,4.7171,31434.0,31397.0,3.7538]
[1609802699175,0.13632608,31411.0,31410.0,0.13632608]
[1609802699374,0.13632608,31411.0,31397.0,3.7538]
[1609802699580,0.13632608,31411.0,31395.0,0.13191]
[1609802699779,0.13632608,31411.0,31390.0,4.5709]
[1609802701079,0.09771,31414.0,31406.0,0.13632608]
[1609802701485,0.09771,31414.0,31404.0,3.9205]
[1609802702484,0.09771,31414.0,31398.0,0.13802]
[1609802702681,0.2795,31439.0,31412.0,4.131]
[1609802702881,0.2707,31438.0,31412.0,4.131]
[1609802703282,0.2707,31438.0,31422.0,0.13632608]
[1609802703882,0.2707,31438.0,31428.0,4.8621]
[1609802704382,0.2707,31438.0,31422.0,0.13632608]
[1609802704581,0.41341,31438.0,31422.0,0.13632608]
[1609802704782,0.41341,31438.0,31415.0,0.13072]
[1609802704983,0.6822,31437.0,31415.0,0.13072]
[1609802705183,0.13632608,31416.0,31415.0,0.13072]
[1609802705384,0.6822,31437.0,31415.0,0.13072]
[1609802707185,0.6822,31437.0,31421.0,0.13632608]
[1609802707384,0.41341,31438.0,31415.0,0.13072]
[1609802707589,0.41341,31438.0,31419.0,4.7616]
[1609802708486,0.41341,31438.0,31415.0,0.13072]
[1609802708785,0.41341,31438.0,31408.0,0.12787]
[1609802708985,0.41341,31438.0,31416.0,5.242]
[1609802709185,0.41341,31438.0,31427.0,0.13632608]
[1609802709989,0.41341,31438.0,31423.0,4.2321]
[1609802710189,0.41341,31438.0,31415.0,0.11607]